Workbook

Sheet Лист2
A1: Согласовано | M1: Утверждаю
A2: Начальник отдела бразования | M2: Директор ____________________
A3: Сармановского муниципального района | M3: ______________________________
A4: ______________А.З.Сабиров
A6: ПРИМЕРНОЕ 14 ДНЕВНОЕ МЕНЮ ДЛЯ школ Сармановского муниципального района
A7: на 1 полугодие 2020-2021 учебного года (осенне-зимний период)
B8: Наименование блюда | C8: Выход блюда(гр) | E8: Пищевые вещества(г) | K8: Энергетическая ценность (ккал) | M8: Минеральные вещества (мг) | Q8: Витамины (мг) | S8: № тех. карты
E9: Б | G9: Ж | I9: У | M9: Са | O9: Р | Q9: С
C11: 1-4 кл | D11: 5-11 кл | E11: 1-4 кл | F11: 5-11 кл | G11: 1-4 кл | H11: 5-11 кл | I11: 1-4 кл | J11: 5-11 кл | K11: 1-4 кл | L11: 5-11 кл | M11: 1-4 кл | N11: 5-11 кл | O11: 1-4 кл | P11: 5-11 кл | Q11: 1-4 кл | R11: 5-11 кл
A12: 1 неделя 1 день (понедельник)
A13: Завтрак | B13: Каша пшенная молочная | C13: 150 | D13: 180 | E13: 10.44 | F13: 12.92 | G13: 11.11 | H13: 13.33 | I13: 41.3 | J13: 49.55 | K13: 307 | L13: 368 | M13: 158.6 | N13: 190 | O13: 156.05 | P13: 186 | Q13: 1.20 | R13: 1.44 | S13: 11
B14: Какао с молоком | C14: 200 | D14: 200 | E14: 3.52 | F14: 3.52 | G14: 3.72 | H14: 3.72 | I14: 25.49 | J14: 25.49 | K14: 145.2 | L14: 145.2 | M14: 122 | N14: 122 | O14: 90 | P14: 90 | Q14: 1.3 | R14: 1.3 | S14: 959
B15: Хлеб рж-пшеничный | C15: 55 | D15: 82,5 | E15: 2.72 | F15: 4.08 | G15: 0.49 | H15: 0.74 | I15: 0.49 | J15: 0.74 | K15: 74.6 | L15: 111.99 | M15: 14.43 | N15: 21.65 | O15: 58.3 | P15: 87.45 | Q15: 0 | R15: 0 | S15: 61
A16: Обед | B16: Каша гречневая рассыпчатая | C16: 150 | D16: 180 | E16: 3.6 | F16: 4.32 | G16: 7 | H16: 8.4 | I16: 29 | J16: 34.8 | K16: 193 | L16: 231.6 | M16: 20.632 | N16: 24.76 | O16: 177.928 | P16: 213.52 | Q16: 0 | R16: 0
B17: Котлета из говядины | C17: 50 | D17: 50 | E17: 7.78 | F17: 7.78 | G17: 5.78 | H17: 5.78 | I17: 7.85 | J17: 7.85 | K17: 114.38 | L17: 114.38 | M17: 21.88 | N17: 21.88 | O17: 83.19 | P17: 83.19 | Q17: 0.08 | R17: 0.08 | S17: 608
B18: Чай с сахаром | C18: 200 | D18: 200 | E18: 0.2 | F18: 0.2 | G18: 0 | H18: 0 | I18: 14 | J18: 14 | K18: 28 | L18: 28 | M18: 6 | N18: 6 | O18: 0 | P18: 0 | Q18: 0 | R18: 0 | S18: 943
B19: Хлеб рж-пшеничный | C19: 55 | D19: 82,5 | E19: 2.72 | F19: 4.08 | G19: 0.49 | H19: 0.74 | I19: 0.49 | J19: 0.74 | K19: 74.6 | L19: 111.99 | M19: 14.43 | N19: 21.65 | O19: 58.3 | P19: 87.45 | Q19: 0 | R19: 0 | S19: 61
A20: Итого | E20: =SUM(E13:E19) -> 30.98 | F20: 36.9 | G20: 28.59 | H20: 32.71 | I20: 118.62 | J20: 133.17 | K20: 936.78 | L20: 1111.16 | M20: =SUM(M13:M19) -> 357.972 | N20: 407.94 | O20: 623.768 | P20: 747.61 | Q20: 2.58 | R20: 2.82
A21: 1 неделя 2 день (вторник)
A22: Завтрак | B22: Каша манная молочная | C22: 200 | D22: 200 | E22: 6.24 | F22: 6.24 | G22: 6.1 | H22: 6.1 | I22: 19.7 | J22: 19.7 | K22: 158.64 | L22: 158.64 | M22: 192.17 | N22: 192.17 | O22: 156.05 | P22: 156.05 | Q22: 1.09 | R22: 1.09 | S22: 390
B23: Чай с сахаром | C23: 200 | D23: 200 | E23: 0.2 | F23: 0.2 | G23: 0 | H23: 0 | I23: 14 | J23: 14 | K23: 28 | L23: 28 | M23: 6 | N23: 6 | O23: 0 | P23: 0 | Q23: 0 | R23: 0 | S23: 943
B24: Хлеб рж-пшеничный | C24: 55 | D24: 82,5 | E24: 2.72 | F24: 4.08 | G24: 0.49 | H24: 0.74 | I24: 0.49 | J24: 0.74 | K24: 74.6 | L24: 111.99 | M24: 14.43 | N24: 21.65 | O24: 58.3 | P24: 87.45 | Q24: 0 | R24: 0 | S24: 61
B25: Апельсины | C25: 150 | D25: 150 | E25: 0.3 | F25: 0.3 | G25: 1.35 | H25: 1.35 | I25: 12.15 | J25: 12.15 | K25: 64.5 | L25: 64.5 | M25: 0.72 | N25: 0.72 | O25: 0 | P25: 0 | Q25: 144 | R25: 144 | S25: 907
B26: Борщ с капустой и картофелем | C26: 200 | D26: 250 | E26: 1.45 | F26: 1.81 | G26: 3.93 | H26: 4.91 | I26: 100.2 | J26: 125.25 | K26: 82 | L26: 102.5 | M26: 35.5 | N26: 44.38 | O26: 42.58 | P26: 53.23 | Q26: 8.23 | R26: 10.49 | S26: 170
B27: Чай с сахаром | C27: 200 | D27: 200 | E27: 0.2 | F27: 0.2 | G27: 0 | H27: 0 | I27: 14 | J27: 14 | K27: 28 | L27: 28 | M27: 6 | N27: 6 | O27: 0 | P27: 0 | Q27: 0 | R27: 0 | S27: 943
B28: Хлеб рж-пшеничный | C28: 55 | D28: 82,5 | E28: 2.72 | F28: 4.08 | G28: 0.49 | H28: 0.74 | I28: 0.49 | J28: 0.74 | K28: 74.6 | L28: 111.99 | M28: 14.43 | N28: 21.65 | O28: 58.3 | P28: 87.45 | Q28: 0 | R28: 0 | S28: 61
A29: Итого | E29: =SUM(E22:E28) -> 13.83 | F29: 16.91 | G29: 12.36 | H29: 13.84 | I29: 161.03 | J29: 186.58 | K29: 510.34 | L29: 605.62 | M29: 269.25 | N29: 292.57 | O29: 315.23 | P29: 384.18 | Q29: 153.32 | R29: 155.58
A30: 1 неделя 3 день (среда)
A31: Завтрак | B31: Каша ячневая вязкая | C31: 150 | D31: 180 | E31: 5.4 | F31: 6.48 | G31: 3 | H31: 3.6 | I31: 29.7 | J31: 35.64 | K31: 166.5 | L31: 199.8 | M31: 76.93 | N31: 92.32 | O31: 0 | P31: 0 | Q31: 0.1 | R31: 0.1 | S31: 168
B32: Сыр порционный | C32: 20 | D32: 20 | E32: 5.2 | F32: 5.2 | G32: 5.36 | H32: 5.36 | I32: 0 | J32: 0 | K32: 70.4 | L32: 70.4 | M32: 208 | N32: 208 | O32: 108.8 | P32: 108.8 | Q32: 0.56 | R32: 0.56 | S32: 29
B33: Какао с молоком | C33: 200 | D33: 200 | E33: 3.52 | F33: 3.52 | G33: 3.72 | H33: 3.72 | I33: 25.49 | J33: 25.49 | K33: 145.2 | L33: 145.2 | M33: 122 | N33: 122 | O33: 90 | P33: 90 | Q33: 1.3 | R33: 1.3 | S33: 959
B34: Хлеб рж-пшеничный | C34: 55 | D34: 82,5 | E34: 2.72 | F34: 4.08 | G34: 0.49 | H34: 0.74 | I34: 0.49 | J34: 0.74 | K34: 74.6 | L34: 111.99 | M34: 14.43 | N34: 21.65 | O34: 58.3 | P34: 87.45 | Q34: 0 | R34: 0 | S34: 61
A35: Обед | B35: Салат из бел. капусты | C35: 60 | D35: 60 | E35: 0.85 | F35: 0.85 | G35: 3.05 | H35: 3.05 | I35: 5.19 | J35: 5.19 | K35: 51.54 | L35: 51.54 | M35: 26.8 | N35: 26.8 | O35: 14.83 | P35: 14.83 | Q35: 21 | R35: 20.97 | S35: 43
B36: Гуляш из говядины | C36: 50/75 | D36: 50/75 | E36: 19.72 | F36: 19.72 | G36: 17.89 | H36: 17.89 | I36: 4.76 | J36: 4.76 | K36: 168.2 | L36: 168.2 | M36: 24.36 | N36: 24.36 | O36: 194.69 | P36: 194.69 | Q36: 1.28 | R36: 1.28 | S36: 591
B37: Макароны отварные | C37: 150 | D37: 180 | E37: 5.52 | F37: 6.62 | G37: 4.52 | H37: 5.42 | I37: 26.45 | J37: 31.73 | K37: 168.45 | L37: 202.14 | M37: 4.86 | N37: 5.83 | O37: 37.17 | P37: 44.6 | Q37: 0 | R37: 0 | S37: 688
B38: Чай с сахаром | C38: 200 | D38: 200 | E38: 0.2 | F38: 0.2 | G38: 0 | H38: 0 | I38: 14 | J38: 14 | K38: 28 | L38: 28 | M38: 6 | N38: 6 | O38: 0 | P38: 0 | Q38: 0 | R38: 0 | S38: 943
B39: Хлеб рж-пшеничный | C39: 55 | D39: 82,5 | E39: 2.72 | F39: 4.08 | G39: 0.49 | H39: 0.74 | I39: 0.49 | J39: 0.74 | K39: 74.6 | L39: 111.99 | M39: 14.43 | N39: 21.65 | O39: 58.3 | P39: 87.45 | Q39: 0 | R39: 0 | S39: 61
A40: Итого | E40: =SUM(E31:E39) -> 45.85 | F40: 50.75 | G40: 38.52 | H40: 40.52 | I40: 106.57 | J40: 118.29 | K40: 947.49 | L40: 1089.26 | M40: 497.81 | N40: 528.61 | O40: 562.09 | P40: 627.82 | Q40: 24.24 | R40: 24.21
A41: 1 неделя 4 день (четверг)
A42: Завтрак | B42: Запеканка из творога | C42: 50 | D42: 50 | E42: 9.28 | F42: 9.28 | G42: 6 | H42: 6 | I42: 10.8 | J42: 10.8 | K42: 93.2 | L42: 93.2 | M42: 75.33 | N42: 75.33 | O42: 172.46 | P42: 172.46 | Q42: 0.37 | R42: 0.37 | S42: 469
B43: Сок фруктовый | C43: 200 | D43: 200 | E43: 1.33 | F43: 1.33 | G43: 0.27 | H43: 0.27 | I43: 26.87 | J43: 26.87 | K43: 122.36 | L43: 122.36 | M43: 18.62 | N43: 18.62 | O43: 4.29 | P43: 4.29 | Q43: 5.32 | R43: 5.32 | S43: 134
B44: Хлеб рж-пшеничный | C44: 55 | D44: 82,5 | E44: 2.72 | F44: 4.08 | G44: 0.49 | H44: 0.74 | I44: 0.49 | J44: 0.74 | K44: 74.6 | L44: 111.99 | M44: 14.43 | N44: 21.65 | O44: 58.3 | P44: 87.45 | Q44: 0 | R44: 0 | S44: 61
A45: Обед | B45: Картофельное пюре | C45: 180 | D45: 200 | E45: 3.67 | F45: 4.08 | G45: 5.76 | H45: 6.4 | I45: 24.53 | J45: 27.26 | K45: 164.7 | L45: 183 | M45: 44.37 | N45: 49.3 | O45: 103.91 | P45: 115.46 | Q45: 21.8 | R45: 24.22 | S45: 694
B46: Рыбные котлеты | C46: 60 | D46: 60 | E46: 8.93 | F46: 8.93 | G46: 3.04 | H46: 3.04 | I46: 5.75 | J46: 5.75 | K46: 86.25 | L46: 86.25 | M46: 36.32 | N46: 36.32 | O46: 118.27 | P46: 118.27 | Q46: 0.62 | R46: 0.62 | S46: 255
B47: Салат из моркови | C47: 60 | D47: 60 | E47: 0.632 | F47: 0.632 | G47: 6.043 | H47: 6.043 | I47: 4.3 | J47: 4.3 | K47: 74 | L47: 74 | M47: 13.302 | N47: 13.302 | O47: 26.85 | P47: 26.85 | Q47: 2.43 | R47: 2.43
B48: Компот из смеси сухофруктов | C48: 200 | D48: 200 | E48: 0.04 | F48: 0.04 | G48: 0 | H48: 0 | I48: 24.76 | J48: 24.76 | K48: 94.2 | L48: 94.2 | M48: 6.4 | N48: 6.4 | O48: 3.6 | P48: 3.6 | Q48: 1.08 | R48: 1.08 | S48: 868
B49: Хлеб рж-пшеничный | C49: 55 | D49: 82,5 | E49: 2.72 | F49: 4.08 | G49: 0.49 | H49: 0.74 | I49: 0.49 | J49: 0.74 | K49: 74.6 | L49: 111.99 | M49: 14.43 | N49: 21.65 | O49: 58.3 | P49: 87.45 | Q49: 0 | R49: 0 | S49: 61
A50: Итого | E50: =SUM(E42:E49) -> 29.322 | F50: 32.452 | G50: 22.093 | H50: 23.233 | I50: 97.99 | J50: 101.22 | K50: 783.91 | L50: 876.99 | M50: 223.202 | N50: 242.572 | O50: 545.98 | P50: 615.83 | Q50: 31.62 | R50: 34.04
A51: 1 неделя 5 день (пятница)
A52: Завтрак | B52: Каша вязкая гречневая | C52: 150 | D52: 180 | E52: 4.4 | F52: 5.2 | G52: 4.6 | H52: 5.5 | I52: 24.2 | J52: 29 | K52: 155.6 | L52: 186.8 | M52: 8.8 | N52: 10.6 | O52: 104.2 | P52: 124.90 | Q52: 0 | R52: 0 | S52: 168
B53: Кисель | C53: 200 | D53: 200 | E53: 0.2 | F53: 0.2 | G53: 0 | H53: 0 | I53: 32.6 | J53: 32.6 | K53: 132 | L53: 132 | M53: 9 | N53: 9 | O53: 4.29 | P53: 4.29 | Q53: 30 | R53: 30 | S53: 122
B54: Хлеб рж-пшеничный | C54: 55 | D54: 82,5 | E54: 2.72 | F54: 4.08 | G54: 0.49 | H54: 0.74 | I54: 0.49 | J54: 0.74 | K54: 74.6 | L54: 111.99 | M54: 14.43 | N54: 21.65 | O54: 58.3 | P54: 87.45 | Q54: 0 | R54: 0 | S54: 61
A55: Обед | B55: Пюре гороховое | C55: 150 | D55: 200 | E55: 16.6 | F55: 22.13 | G55: 4.95 | H55: 6.6 | I55: 2.56 | J55: 3.42 | K55: 260.01 | L55: 346.68 | M55: 84.45 | N55: 4.96 | O55: 0.51 | P55: 161 | Q55: 5.61 | R55: 8.97 | S55: 436
B56: Котлеты рубленные из птицы | C56: 80 | D56: 80 | E56: 11 | F56: 11 | G56: 13.5 | H56: 13.5 | I56: 4.786 | J56: 4.786 | K56: 185 | L56: 185 | M56: 19.564 | N56: 19.564 | O56: 154.618 | P56: 154.618 | Q56: 1.89 | R56: 1.888
B57: Яблоко | C57: 150 | D57: 150 | E57: 0.6 | F57: 0.6 | G57: 0.6 | H57: 0.6 | I57: 14.7 | J57: 14.7 | K57: 66 | L57: 66 | M57: 24 | N57: 24 | O57: 0 | P57: 0 | Q57: 15 | R57: 15 | S57: 903
B58: Чай с сахаром | C58: 200 | D58: 200 | E58: 0.2 | F58: 0.2 | G58: 0 | H58: 0 | I58: 14 | J58: 14 | K58: 28 | L58: 28 | M58: 6 | N58: 6 | O58: 0 | P58: 0 | Q58: 0 | R58: 0 | S58: 943
B59: Хлеб рж-пшеничный | C59: 55 | D59: 82,5 | E59: 2.72 | F59: 4.08 | G59: 0.49 | H59: 0.74 | I59: 0.49 | J59: 0.74 | K59: 74.6 | L59: 111.99 | M59: 14.43 | N59: 21.65 | O59: 58.3 | P59: 87.45 | Q59: 0 | R59: 0 | S59: 61
A60: Итого | E60: =SUM(E52:E59) -> 38.44 | F60: 47.49 | G60: 24.63 | H60: 27.68 | I60: 93.826 | J60: 99.986 | K60: 975.81 | L60: 1168.46 | M60: 180.674 | N60: 117.424 | O60: 380.218 | P60: 619.71 | Q60: 52.50 | R60: 55.858
A61: 1 неделя 6 день (суббота)
A62: Завтрак | B62: Каша вязкая рисовая | C62: 150 | D62: 180 | E62: 4.4 | F62: 5.2 | G62: 4.6 | H62: 5.5 | I62: 24.2 | J62: 29 | K62: 155.6 | L62: 186.8 | M62: 8.8 | N62: 10.6 | O62: 104.2 | P62: 124.90 | Q62: 0 | R62: 0 | S62: 168
B63: Булочки сдобные "Ромашка" | C63: 50 | D63: 50 | E63: 4.2 | F63: 4.2 | G63: 7.06 | H63: 7.06 | I63: 32.064 | J63: 32.064 | K63: 209.33 | L63: 209.33 | M63: 9.22 | N63: 9.22 | O63: 37.22 | P63: 37.22 | Q63: 0 | R63: 0 | S63: 34
B64: Какао с молоком | C64: 200 | D64: 200 | E64: 3.52 | F64: 3.52 | G64: 3.72 | H64: 3.72 | I64: 25.49 | J64: 25.49 | K64: 145.2 | L64: 145.2 | M64: 122 | N64: 122 | O64: 90 | P64: 90 | Q64: 1.3 | R64: 1.3 | S64: 959
A65: Обед | B65: Суп рассольник на м/к бульоне с перловой крупой | C65: 200 | D65: 250 | E65: 1.68 | F65: 2.1 | G65: 4.09 | H65: 5.11 | I65: 13.27 | J65: 16.59 | K65: 96.6 | L65: 120.75 | M65: 21.16 | N65: 26.45 | O65: 57.56 | P65: 71.95 | Q65: 6.03 | R65: 7.54 | S65: 197
B66: Чай с сахаром | C66: 200 | D66: 200 | E66: 0.2 | F66: 0.2 | G66: 0 | H66: 0 | I66: 14 | J66: 14 | K66: 28 | L66: 28 | M66: 6 | N66: 6 | O66: 0 | P66: 0 | Q66: 0 | R66: 0 | S66: 943
B67: Хлеб рж-пшеничный | C67: 55 | D67: 82,5 | E67: 2.72 | F67: 4.08 | G67: 0.49 | H67: 0.74 | I67: 0.49 | J67: 0.74 | K67: 74.6 | L67: 111.99 | M67: 14.43 | N67: 21.65 | O67: 58.3 | P67: 87.45 | Q67: 0 | R67: 0 | S67: 61
A68: Итого | E68: =SUM(E63:E67) -> 12.32 | F68: 14.1 | G68: 15.36 | H68: 16.63 | I68: 85.314 | J68: 88.884 | K68: 553.73 | L68: 615.27 | M68: 172.81 | N68: 185.32 | O68: 243.08 | P68: 286.62 | Q68: 7.33 | R68: 8.84
A69: 2 неделя 1 день (понедельник)
A70: Завтрак | B70: Каша вязкая с крупой "Геркулес" | C70: 150 | D70: 180 | E70: 4.99 | F70: 5.99 | G70: 8.25 | H70: 9.9 | I70: 16.98 | J70: 20.37 | K70: 122.37 | L70: 146.85 | M70: 143.11 | N70: 171.6 | O70: 0 | P70: 0.00 | Q70: 0.68 | R70: 0.81 | S70: 168
B71: Чай с сахаром | C71: 200 | D71: 200 | E71: 0.2 | F71: 0.2 | G71: 0 | H71: 0 | I71: 14 | J71: 14 | K71: 28 | L71: 28 | M71: 6 | N71: 6 | O71: 0 | P71: 0 | Q71: 0 | R71: 0 | S71: 943
B72: Хлеб рж-пшеничный | C72: 55 | D72: 82,5 | E72: 2.72 | F72: 4.08 | G72: 0.49 | H72: 0.74 | I72: 0.49 | J72: 0.74 | K72: 74.6 | L72: 111.99 | M72: 14.43 | N72: 21.65 | O72: 58.3 | P72: 87.45 | Q72: 0 | R72: 0 | S72: 61
A73: Обед | B73: Каша гречневая рассыпчатая | C73: 150 | D73: 180 | E73: 3.6 | F73: 4.32 | G73: 7 | H73: 8.4 | I73: 29 | J73: 34.8 | K73: 193 | L73: 231.6 | M73: 20.632 | N73: 24.76 | O73: 177.928 | P73: 213.52 | Q73: 0 | R73: 0
B74: Гуляш из говядины | C74: 50/75 | D74: 50/75 | E74: 19.72 | F74: 19.72 | G74: 17.89 | H74: 17.89 | I74: 4.76 | J74: 4.76 | K74: 168.2 | L74: 168.2 | M74: 24.36 | N74: 24.36 | O74: 194.69 | P74: 194.69 | Q74: 1.28 | R74: 1.28 | S74: 591
B75: Какао с молоком | C75: 200 | D75: 200 | E75: 3.52 | F75: 3.52 | G75: 3.72 | H75: 3.72 | I75: 25.49 | J75: 25.49 | K75: 145.2 | L75: 145.2 | M75: 122 | N75: 122 | O75: 90 | P75: 90 | Q75: 1.3 | R75: 1.3 | S75: 959
B76: Хлеб рж-пшеничный | C76: 55 | D76: 82,5 | E76: 2.72 | F76: 4.08 | G76: 0.49 | H76: 0.74 | I76: 0.49 | J76: 0.74 | K76: 74.6 | L76: 111.99 | M76: 14.43 | N76: 21.65 | O76: 58.3 | P76: 87.45 | Q76: 0 | R76: 0 | S76: 61
A77: Итого | E77: =SUM(E70:E76) -> 37.47 | F77: 41.91 | G77: 37.84 | H77: 41.39 | I77: 91.21 | J77: 100.9 | K77: 805.97 | L77: 943.83 | M77: =SUM(M70:M76) -> 344.962 | N77: =SUM(N70:N76) -> 392.02 | O77: =SUM(O71:O76) -> 579.218 | P77: =SUM(P71:P76) -> 673.11 | Q77: =SUM(Q70:Q76) -> 3.26 | R77: 3.39
A78: 2 неделя 2 день (вторник)
A79: Завтрак | B79: Каша ячневая молочная | C79: 150 | D79: 180 | E79: 5.4 | F79: 6.48 | G79: 3 | H79: 3.6 | I79: 29.7 | J79: 35.64 | K79: 166.5 | L79: 199.8 | M79: 76.93 | N79: 92.32 | O79: 0 | P79: 0 | Q79: 0.1 | R79: 0.1 | S79: 344
B80: Ряженка | C80: 200 | D80: 200 | E80: 5.8 | F80: 5.8 | G80: 5 | H80: 5 | I80: 8.4 | J80: 8.4 | K80: 108 | L80: 108 | M80: 248 | N80: 248 | O80: 184 | P80: 184 | Q80: 0.6 | R80: 0.6 | S80: 966
B81: Хлеб рж-пшеничный | C81: 55 | D81: 82,5 | E81: 2.72 | F81: 4.08 | G81: 0.49 | H81: 0.74 | I81: 0.49 | J81: 0.74 | K81: 74.6 | L81: 111.99 | M81: 14.43 | N81: 21.65 | O81: 58.3 | P81: 87.45 | Q81: 0.00 | R81: 0 | S81: 61
A82: Обед | B82: Салат из свеклы | C82: 50 | D82: 50 | E82: 0.71 | F82: 0.71 | G82: 2.05 | H82: 2.05 | I82: 4.18 | J82: 4.18 | K82: 46.95 | L82: 46.95 | M82: 17.58 | N82: 17.58 | O82: 20.48 | P82: 20.48 | Q82: 4.75 | R82: 4.75 | S82: 33
B83: Плов из говядины | C83: 210 | D83: 210 | E83: 20.3 | F83: 20.3 | G83: 17 | H83: 17 | I83: 35.69 | J83: 35.69 | K83: 377 | L83: 377 | M83: 45.1 | N83: 45.1 | O83: 199.3 | P83: 199.30 | Q83: 1.01 | R83: 1.01 | S83: 450
B84: Чай с сахаром | C84: 200 | D84: 200 | E84: 0.2 | F84: 0.2 | G84: 0 | H84: 0 | I84: 14 | J84: 14 | K84: 28 | L84: 28 | M84: 6 | N84: 6 | O84: 0 | P84: 0 | Q84: 0 | R84: 0 | S84: 943
B85: Хлеб рж-пшеничный | C85: 55 | D85: 82,5 | E85: 2.72 | F85: 4.08 | G85: 0.49 | H85: 0.74 | I85: 0.49 | J85: 0.74 | K85: 74.6 | L85: 111.99 | M85: 14.43 | N85: 21.65 | O85: 58.3 | P85: 87.45 | Q85: 0 | R85: 0 | S85: 61
A86: Итого | E86: =SUM(E79:E85) -> 37.85 | F86: 41.65 | G86: 28.03 | H86: 29.13 | I86: 92.95 | J86: 99.39 | K86: 875.65 | L86: 983.73 | M86: 422.47 | N86: 452.3 | O86: 520.38 | P86: 578.68 | Q86: 6.46 | R86: 6.46
A87: 2 неделя 3 день (среда)
A88: Завтрак | B88: Омлет натуральный | C88: 115/3 | D88: 115/3 | E88: 9.51 | F88: 9.51 | G88: 14.77 | H88: 14.77 | I88: 1.77 | J88: 1.77 | K88: 178.62 | L88: 178.62 | M88: 75.2 | N88: 75.2 | O88: 173.25 | P88: 173.25 | Q88: 0.07 | R88: 0.07 | S88: 438
B89: Чай с сахаром | C89: 200 | D89: 200 | E89: 0.2 | F89: 0.2 | G89: 0 | H89: 0 | I89: 14 | J89: 14 | K89: 28 | L89: 28 | M89: 6 | N89: 6 | O89: 0 | P89: 0 | Q89: 0 | R89: 0 | S89: 943
B90: Хлеб рж-пшеничный | C90: 55 | D90: 82,5 | E90: 2.72 | F90: 4.08 | G90: 0.49 | H90: 0.74 | I90: 0.49 | J90: 0.74 | K90: 74.6 | L90: 111.99 | M90: 14.43 | N90: 21.65 | O90: 58.3 | P90: 87.45 | Q90: 0 | R90: 0 | S90: 61
B91: Салат из бел. капусты | C91: 60 | D91: 60 | E91: 0.85 | F91: 0.85 | G91: 3.05 | H91: 3.05 | I91: 5.19 | J91: 5.19 | K91: 51.54 | L91: 51.54 | M91: 26.8 | N91: 26.8 | O91: 14.83 | P91: 14.83 | Q91: 21 | R91: 20.97 | S91: 43
A92: Обед | B92: Картофельное пюре | C92: 180 | D92: 200 | E92: 3.67 | F92: 4.08 | G92: 5.76 | H92: 6.4 | I92: 24.53 | J92: 27.26 | K92: 164.7 | L92: 183 | M92: 44.37 | N92: 49.3 | O92: 103.91 | P92: 115.46 | Q92: 21.8 | R92: 24.22 | S92: 694
B93: Котлеты рыбные | C93: 60 | D93: 60 | E93: 8.93 | F93: 8.93 | G93: 3.04 | H93: 3.04 | I93: 5.75 | J93: 5.75 | K93: 86.25 | L93: 86.25 | M93: 36.32 | N93: 118.27 | O93: 0.62 | P93: 255
B94: Чай с сахаром | C94: 200 | D94: 200 | E94: 0.2 | F94: 0.2 | G94: 0 | H94: 0 | I94: 14 | J94: 14 | K94: 28 | L94: 28 | M94: 6 | N94: 6 | O94: 0 | P94: 0 | Q94: 0 | R94: 0 | S94: 943
B95: Хлеб рж-пшеничный | C95: 55 | D95: 82,5 | E95: 2.72 | F95: 4.08 | G95: 0.49 | H95: 0.74 | I95: 0.49 | J95: 0.74 | K95: 74.6 | L95: 111.99 | M95: 14.43 | N95: 21.65 | O95: 58.3 | P95: 87.45 | Q95: 0 | R95: 0 | S95: 61
A96: Итого | E96: =SUM(E88:E95) -> 28.8 | F96: 31.93 | G96: 27.6 | H96: 28.74 | I96: 66.22 | J96: 69.45 | K96: 686.31 | L96: 779.39 | M96: =SUM(M88:M95) -> 223.55 | N96: 324.87 | O96: 409.21 | P96: 733.44 | Q96: 42.87 | R96: 45.26
A97: 2 неделя 4 день (четверг)
A98: Завтрак | B98: Запеканка из творога | C98: 50 | D98: 50 | E98: 9.28 | F98: 9.28 | G98: 6 | H98: 6 | I98: 10.8 | J98: 10.8 | K98: 93.2 | L98: 93.2 | M98: 75.33 | N98: 75.33 | O98: 172.46 | P98: 172.46 | Q98: 0.37 | R98: 0.37 | S98: 469
B99: Какао с молоком | C99: 200 | D99: 200 | E99: 3.52 | F99: 3.52 | G99: 3.72 | H99: 3.72 | I99: 25.49 | J99: 25.49 | K99: 145.2 | L99: 145.2 | M99: 122 | N99: 122 | O99: 90 | P99: 90 | Q99: 1.3 | R99: 1.3 | S99: 959
B100: Хлеб рж-пшеничный | C100: 55 | D100: 82,5 | E100: 2.72 | F100: 4.08 | G100: 0.49 | H100: 0.74 | I100: 0.49 | J100: 0.74 | K100: 74.6 | L100: 111.99 | M100: 14.43 | N100: 21.65 | O100: 58.3 | P100: 87.45 | Q100: 0 | R100: 0 | S100: 61
A101: обед | B101: Салат из моркови | C101: 60 | D101: 60 | E101: 0.632 | F101: 0.632 | G101: 6.043 | H101: 6.043 | I101: 4.3 | J101: 4.3 | K101: 74 | L101: 74 | M101: 13.302 | N101: 13.302 | O101: 26.85 | P101: 26.85 | Q101: 2.43 | R101: 2.43
B102: Макароны отварные | C102: 150 | D102: 180 | E102: 5.52 | F102: 6.62 | G102: 4.52 | H102: 5.42 | I102: 26.45 | J102: 31.73 | K102: 168.45 | L102: 202.14 | M102: 4.86 | N102: 5.83 | O102: 37.17 | P102: 44.6 | Q102: 0 | R102: 0 | S102: 688
B103: Грудка куриная отварная | C103: 58 | D103: 58 | E103: 15.83 | F103: 15.83 | G103: 10.2 | H103: 10.2 | I103: 0 | J103: 0 | K103: 154.69 | L103: 154.69 | M103: 29.25 | N103: 29.25 | O103: 107.25 | P103: 107.25 | Q103: 0 | R103: 0 | S103: 637
B104: Сок фруктовый | C104: 200 | D104: 200 | E104: 1.33 | F104: 1.33 | G104: 0.266 | H104: 0.266 | I104: 26.87 | J104: 26.87 | K104: 122.36 | L104: 122.36 | M104: 18.62 | N104: 18.62 | O104: 4.29 | P104: 4.29 | Q104: 5.32 | R104: 5.32 | S104: 134
B105: Хлеб рж-пшеничный | C105: 55 | D105: 82,5 | E105: 2.72 | F105: 4.08 | G105: 0.49 | H105: 0.74 | I105: 0.49 | J105: 0.74 | K105: 74.6 | L105: 111.99 | M105: 14.43 | N105: 21.65 | O105: 58.3 | P105: 87.45 | Q105: 0 | R105: 0 | S105: 61
A106: Итого | E106: =SUM(E98:E105) -> 41.552 | F106: 45.372 | G106: 31.729 | H106: 33.129 | I106: 94.89 | J106: 100.67 | K106: 907.1 | L106: 1015.57 | M106: 292.222 | N106: 307.632 | O106: 554.62 | P106: 620.35 | Q106: 9.42 | R106: 9.42
A107: 2 неделя 5 день (пятница)
A108: Завтрак | B108: Каша молочная рисовая | C108: 160 | D108: 210 | E108: 2.32 | F108: 3.09 | G108: 3.96 | H108: 4.07 | I108: 28.97 | J108: 36.98 | K108: 161 | L108: 197 | M108: 4.7 | N108: 5.9 | O108: 50.6 | P108: 67 | Q108: 0.00 | R108: 0 | S108: 168
B109: Чай с сахаром | C109: 200 | D109: 200 | E109: 0.2 | F109: 0.2 | G109: 0 | H109: 0 | I109: 14 | J109: 14 | K109: 28 | L109: 28 | M109: 6 | N109: 6 | O109: 0 | P109: 0 | Q109: 0 | R109: 0 | S109: 943
B110: Хлеб рж-пшеничный | C110: 55 | D110: 82,5 | E110: 2.72 | F110: 4.08 | G110: 0.49 | H110: 0.74 | I110: 0.49 | J110: 0.74 | K110: 74.6 | L110: 111.99 | M110: 14.43 | N110: 21.65 | O110: 58.3 | P110: 87.45 | Q110: 0 | R110: 0 | S110: 61
A111: Обед | B111: ЩИ с капустой и картофелем | C111: 200 | D111: 250 | E111: 1.4 | F111: 1.75 | G111: 3.88 | H111: 4.84 | I111: 6.8 | J111: 8.49 | K111: 67.8 | L111: 84.75 | M111: 34.67 | N111: 43.33 | O111: 38.11 | P111: 47.63 | Q111: 14.77 | R111: 18.46 | S111: 187
B112: Салат из свеклы | C112: 50 | D112: 50 | E112: 0.71 | F112: 0.71 | G112: 2.05 | H112: 2.05 | I112: 4.18 | J112: 4.18 | K112: 46.95 | L112: 46.95 | M112: 17.58 | N112: 17.58 | O112: 20.48 | P112: 20.48 | Q112: 4.75 | R112: 4.75 | S112: 33
B113: Чай с сахаром | C113: 200 | D113: 200 | E113: 0.2 | F113: 0.2 | G113: 0 | H113: 0 | I113: 14 | J113: 14 | K113: 28 | L113: 28 | M113: 6 | N113: 6 | O113: 0 | P113: 0.00 | Q113: 0 | R113: 0 | S113: 943
B114: Хлеб рж-пшеничный | C114: 55 | D114: 82,5 | E114: 2.72 | F114: 4.08 | G114: 0.49 | H114: 0.74 | I114: 0.49 | J114: 0.74 | K114: 74.6 | L114: 111.99 | M114: 14.43 | N114: 21.65 | O114: 58.3 | P114: 87.45 | Q114: 0 | R114: 0 | S114: 61
A115: Итого | E115: =SUM(E108:E114) -> 10.27 | F115: =SUM(F108:F114) -> 14.11 | G115: =SUM(G108:G114) -> 10.87 | H115: =SUM(H108:H114) -> 12.44 | I115: =SUM(I108:I114) -> 68.93 | J115: =SUM(J108:J114) -> 79.13 | K115: =SUM(K108:K114) -> 480.95 | L115: =SUM(L108:L114) -> 608.68 | M115: =SUM(M108:M114) -> 97.81 | N115: =SUM(N108:N114) -> 122.11 | O115: =SUM(O108:O114) -> 225.79 | P115: =SUM(P108:P114) -> 310.01 | Q115: =SUM(Q108:Q114) -> 19.52 | R115: =SUM(R108:R114) -> 23.21
A116: 2 неделя 6 день (суббота)
A117: Завтрак | B117: Каша пшенная молочная | C117: 150 | D117: 180 | E117: 10.44 | F117: 12.92 | G117: 11.11 | H117: 13.33 | I117: 41.3 | J117: 49.55 | K117: 307 | L117: 368 | M117: 158.6 | N117: 190 | O117: 156.05 | P117: 186 | Q117: 1.20 | R117: 1.44 | S117: 11
B118: Булочки сдобные "Ромашка" | C118: 50 | D118: 50 | E118: 4.2 | F118: 4.2 | G118: 7.06 | H118: 7.06 | I118: 32.064 | J118: 32.064 | K118: 209.33 | L118: 209.33 | M118: 9.22 | N118: 9.22 | O118: 37.22 | P118: 37.22 | Q118: 0 | R118: 0 | S118: 34
B119: Сыр порционный | C119: 20 | D119: 20 | E119: 5.36 | F119: 5.36 | G119: 5.46 | H119: 5.46 | I119: 0 | J119: 0 | K119: 70.58 | L119: 70.58 | M119: 208 | N119: 208 | O119: 108.8 | P119: 108.8 | Q119: 0.56 | R119: 0.56 | S119: 29
B120: Чай с сахаром | C120: 200 | D120: 200 | E120: 0.2 | F120: 0.2 | G120: 0 | H120: 0 | I120: 14 | J120: 14 | K120: 28 | L120: 28 | M120: 6 | N120: 6 | O120: 0 | P120: 0.00 | Q120: 0 | R120: 0 | S120: 943
A121: Обед | B121: Рис отварной | C121: 150 | D121: 180 | E121: 5.52 | F121: 6.62 | G121: 4.52 | H121: 5.42 | I121: 26.45 | J121: 31.73 | K121: 168.45 | L121: 202.14 | M121: 4.86 | N121: 5.83 | O121: 37.17 | P121: 44.6 | Q121: 0 | R121: 0 | S121: 688
B122: Сосиски, сардельки отварные | C122: 80 | D122: 80 | E122: 8.32 | F122: 8.32 | G122: 16 | H122: 16 | I122: 16.96 | J122: 16.96 | K122: 179.2 | L122: 179.2 | M122: 19.2 | N122: 19.2 | O122: 127.2 | P122: 127.2 | Q122: 0 | R122: 0 | S122: 536
B123: Чай с сахаром | C123: 200 | D123: 200 | E123: 0.2 | F123: 0.2 | G123: 0 | H123: 0 | I123: 14 | J123: 14 | K123: 28 | L123: 28 | M123: 6 | N123: 6 | O123: 0 | P123: 0 | Q123: 0 | R123: 0 | S123: 943
B124: Хлеб рж-пшеничный | C124: 55 | D124: 82,5 | E124: 2.72 | F124: 4.08 | G124: 0.49 | H124: 0.74 | I124: 0.49 | J124: 0.74 | K124: 74.6 | L124: 111.99 | M124: 14.43 | N124: 21.65 | O124: 58.3 | P124: 87.45 | Q124: 0 | R124: 0 | S124: 61
A125: Итого | E125: =SUM(E118:E120) -> 9.76 | F125: 9.76 | G125: 12.52 | H125: 12.52 | I125: 46.064 | J125: 46.064 | K125: 307.91 | L125: 307.91 | M125: 223.22 | N125: 223.22 | O125: 146.02 | P125: 146.02 | Q125: 0.56 | R125: 0.56
B126: Итого за 12 дней | E126: =SUM(E20,E29,E40,E50,E60,E77,E86,E96,E106,E115,E125) -> 324.124 | F126: =SUM(F20,F29,F40,F50,F60,F77,F86,F96,F106,F115,F125) -> 369.234 | G126: =SUM(G20,G29,G40,G50,G60,G77,G86,G96,G106,G115,G125) -> 274.782 | H126: =SUM(H20,H29,H40,H50,H60,H77,H86,H96,H106,H115,H125) -> 295.332 | I126: =SUM(I20,I29,I40,I50,I60,I77,I86,I96,I106,I115,I125) -> 1038.3 | J126: =SUM(J20,J29,J40,J50,J60,J77,J86,J96,J106,J115,J125) -> 1134.85 | K126: =SUM(K20,K29,K40,K50,K60,K77,K86,K96,K106,K115,K125) -> 8218.22 | L126: =SUM(L20,L29,L40,L50,L60,L77,L86,L96,L106,L115,L125) -> 9490.6 | M126: =SUM(M20,M29,M40,M50,M60,M77,M86,M96,M106,M115,M125) -> 3133.142 | N126: =SUM(N20,N29,N40,N50,N60,N77,N86,N96,N106,N115,N125) -> 3411.268 | O126: =SUM(O20,O29,O40,O50,O60,O77,O86,O96,O106,O115,O125) -> 4862.524 | P126: =SUM(P20,P29,P40,P50,P60,P77,P86,P96,P106,P115,P125) -> 6056.76 | Q126: =SUM(Q20,Q29,Q40,Q50,Q60,Q77,Q86,Q96,Q106,Q115,Q125) -> 346.34 | R126: =SUM(R20,R29,R40,R50,R60,R77,R86,R96,R106,R115,R125) -> 360.808
B127: Средняя величина за 1 день | E127: =E126/12 -> 27.01 | F127: 30.77 | G127: 22.90 | H127: 24.61 | I127: 86.53 | J127: 94.57 | K127: 684.85 | L127: 790.88 | M127: =M126/12 -> 261.10 | N127: 284.27 | O127: 405.21 | P127: 504.73 | Q127: 28.86 | R127: 30.07
A129: Наименование сборника рецептур:Сборник рецептур блюд и кулинарных изделий для предприятий общественного питания / Авт.-сост: А.И.Здобнов, В.А. Цыганенко, М.И.Цыганенко, М.И.Пересичный- К.А.С.К. 2005 г.

Sheet Лист3
A1: Наименование сборника рецептур:Сборник рецептур блюд и кулинарных изделий для предприятий общественного питания / Авт.-сост: А.И.Здобнов, В.А. Цыганенко, М.И.Цыганенко, М.И.Пересичный- К.А.С.К. 2005 г.
A2: ПРИМЕРНОЕ 5 ДНЕВНОЕ МЕНЮ ДЛЯ ГРУПП ПРОДЛЕННОГО ДНЯ ОБЩЕОБРАЗОВАТЕЛЬНЫХ УЧРЕЖДЕНИЙ САРМАНОВСКОГО МУНИЦИПАЛЬНОГО РАЙОНА
A3: на 2 полугодие 2018-2019 учебного года
B4: Наименование блюда | C4: Выход блюда(гр) | E4: Пищевые вещества(г) | K4: Энергетическая ценность (ккал) | M4: Минеральн.вещества, мг | O4: Витамины, мг | P4: № тех. карты
E5: Б | G5: Ж | I5: У
C7: 1-4 кл | E7: 1-4 кл | G7: 1-4 кл | I7: 1-4 кл | K7: 1-4 кл | M7: Са | N7: Р | O7: С
A8: Обед | B8: Понедельник
B9: ЩИ с капустой и картофелем | C9: 250 | E9: 1.75 | G9: 4.84 | I9: 8.49 | K9: 84.75 | M9: 73.33 | N9: 47.63 | O9: 18.46 | P9: 187
B10: Компот из смеси сухофруктов | C10: 200 | E10: 0.04 | G10: 0 | I10: 24.76 | K10: 94.2 | M10: 6.40 | N10: 3.6 | O10: 1.08 | P10: 868
B11: Хлеб рж-пшеничный | C11: 55 | E11: 2.72 | G11: 0.49 | I11: 0.74 | K11: 74.6 | M11: 0.11 | N11: 21.65 | O11: 0 | P11: 61
B12: ИТОГО | E12: =SUM(E9:E11) -> 4.51 | F12: 0 | G12: 5.33 | H12: 0 | I12: 33.99 | J12: 0 | K12: 253.55 | L12: 0 | M12: 79.84 | N12: 72.88 | O12: 19.54
A13: Обед | B13: Вторник
B14: Суп картофельный с горохом на м/к бульоне | C14: 250 | E14: 5.5 | G14: 5.28 | I14: 16.33 | K14: 134.7 | M14: 5.70 | N14: 10.8 | O14: 7.8 | P14: 206
B15: Чай сладкий с сахаром | C15: 200 | E15: 1.2 | G15: 3.06 | I15: 13 | K15: 49.28 | M15: 11.60 | N15: 0 | O15: 6 | P15: 943
B16: Хлеб рж-пшеничный | C16: 55 | E16: 2.72 | G16: 0.49 | I16: 0.74 | K16: 74.6 | M16: 0.11 | N16: 21.65 | O16: 0 | P16: 61
B17: ИТОГО | E17: =SUM(E14:E16) -> 9.42 | F17: 0 | G17: 8.83 | H17: 0 | I17: 30.07 | J17: 0 | K17: 258.58 | L17: 0 | M17: 17.41 | N17: 32.45 | O17: 13.8
A18: Обед | B18: Среда
B19: Суп рисовый с картофелем на м/к бульоне | C19: 250 | E19: 1.98 | G19: 2.74 | I19: 14.58 | K19: 90.75 | M19: 23.05 | N19: 62.55 | O19: 8.25 | P19: 204
B20: Кисель фруктово-ягодный | C20: 200 | E20: 0.1 | G20: 0 | I20: 31.46 | K20: 126.22 | M20: 0.20 | N20: 0 | O20: 0 | P20: 122
B21: Хлеб рж-пшеничный | C21: 55 | E21: 2.72 | G21: 0.49 | I21: 0.74 | K21: 74.6 | M21: 0.11 | N21: 21.65 | O21: 0 | P21: 61
B22: ИТОГО | E22: =SUM(E19:E21) -> 4.8 | F22: 0 | G22: 3.23 | H22: 0 | I22: 46.78 | J22: 0 | K22: 291.57 | L22: 0 | M22: 23.36 | N22: 84.2 | O22: 8.25
A23: Обед | B23: Четверг
B24: Жаркое по-домашнему | C24: 50/100 | E24: 17.21 | G24: 4.67 | I24: 41.16 | K24: 496.88 | M24: 48.60 | N24: 526.5 | O24: 14.02 | P24: 96
B25: Чай сладкий с сахаром | C25: 200 | E25: 1.2 | G25: 3.06 | I25: 13 | K25: 49.28 | M25: 11.60 | N25: 0 | O25: 6 | P25: 943
B26: Хлеб рж-пшеничный | C26: 55 | E26: 2.72 | G26: 0.49 | I26: 0.74 | K26: 74.6 | M26: 0.11 | N26: 21.65 | O26: 0 | P26: 61
B27: ИТОГО | E27: =SUM(E24:E26) -> 21.13 | F27: 0 | G27: 8.22 | H27: 0 | I27: 54.9 | J27: 0 | K27: 620.76 | L27: 0 | M27: 60.31 | N27: 548.15 | O27: 20.02
A28: Обед | B28: Пятница
B29: Суп с макаронными изделиями и картофелем на м/к бульоне | C29: 250 | E29: 3.75 | G29: 1.75 | I29: 8 | K29: 62.75 | M29: 2.90 | N29: 14.4 | O29: 7.8 | P29: 208
B30: Компот из смеси сухофруктов | C30: 200 | E30: 0.04 | G30: 0 | I30: 24.76 | K30: 94.2 | M30: 6.40 | N30: 3.6 | O30: 1.08 | P30: 868
B31: Хлеб рж-пшеничный | C31: 55 | E31: 2.72 | G31: 0.49 | I31: 0.74 | K31: 74.6 | M31: 0.11 | N31: 21.65 | O31: 0 | P31: 61
B32: ИТОГО | E32: =SUM(E29:E31) -> 6.51 | F32: 0 | G32: 2.24 | H32: 0 | I32: 33.5 | J32: 0 | K32: 231.55 | L32: 0 | M32: 9.41 | N32: 39.65 | O32: 8.88
A33: Итого за 5 дней | E33: =E12+E17+E22+E27+E32 -> 46.37 | F33: 0 | G33: 27.85 | H33: 0 | I33: 199.24 | J33: 0 | K33: 1656.01 | L33: 0 | M33: 190.34 | N33: 777.33 | O33: 70.49
B34: Средняя величина за 1 день | E34: =E33/5 -> 9.27 | F34: 0.00 | G34: 5.57 | H34: 0.00 | I34: 39.85 | J34: 0.00 | K34: 331.20 | L34: 0.00 | M34: 38.07 | N34: 155.47 | O34: 14.10
A36: Наименование сборника рецептур:Сборник рецептур блюд и кулинарных изделий для предприятий общественного питания / Авт.-сост: А.И.Здобнов, В.А. Цыганенко, М.И.Цыганенко, М.И.Пересичный- К.А.С.К. 2005 г.
